fUST/lending_fUST_20240921
["ID","MTS","AMOUNT","RATE_DAILY","PERIOD"]
[338740311,1726905046991,-178.348073,0.00015093,2]
[338740313,1726905047001,-178.348073,0.00015093,2]
[338740316,1726905047012,-726.919242,0.00015093,2]
[338740318,1726905047022,-726.919242,0.00015093,2]
[338740320,1726905047033,-797.234245,0.00015093,2]
[338740322,1726905047043,-151.0,0.00015093,2]
[338740324,1726905047053,-797.234245,0.00015093,2]
[338740326,1726905047062,-151.0,0.00015093,2]
[338740328,1726905047072,-209.052271,0.00015093,2]
[338740330,1726905047081,-208.465755,0.00015093,2]
[338740332,1726905047095,-208.465755,0.00015093,2]
[338740334,1726905047105,-1700.158132,0.00015093,2]
[338740336,1726905047115,-1700.158132,0.00015093,2]
[338740339,1726905047126,-175.060448,0.00015093,2]
[338740341,1726905047139,-163.476886,0.00015093,2]
[338740343,1726905047150,-366.71633,0.00015093,2]
[338740345,1726905047161,-503.680292,0.00015093,2]
[338740347,1726905047170,-175.060448,0.00015093,2]
[338740349,1726905047180,-366.71633,0.00015093,2]
[338740351,1726905047189,-503.680292,0.00015093,2]
[338740353,1726905047198,-163.476886,0.00015093,2]
[338740355,1726905047208,-5773.8220276,0.00015096,2]
[338740356,1726905047218,-5773.8220276,0.00015099,2]
[338740358,1726905047227,-154.164146,0.000151,2]
[338740360,1726905047238,-410.07372012,0.00015101,2]
[338740362,1726905047247,-12070.00341736,0.00015101,2]
[338740364,1726905047256,-151.0,0.00015103,2]
[338740366,1726905047266,-151.0,0.00015103,2]
[338740368,1726905047275,-500.0,0.00015106,2]
[338740370,1726905047284,-629.78,0.00015106,2]
[338740372,1726905047296,-500.0,0.00015106,2]
[338740374,1726905047307,-500.0,0.00015106,2]
[338740376,1726905047318,-500.0,0.00015106,2]
[338740379,1726905047328,-500.0,0.00015106,2]
[338740381,1726905047338,-503.62,0.00015106,2]
[338740383,1726905047348,-500.0,0.00015106,2]
[338740385,1726905047358,-500.0,0.00015106,2]
[338740387,1726905047368,-500.0,0.00015106,2]
[338740389,1726905047377,-500.0,0.00015106,2]
[338740391,1726905047386,-213.07478154,0.00015106,2]
[338740393,1726905047397,-500.0,0.00015106,2]
[338740395,1726905047406,-500.0,0.00015106,2]
[338740397,1726905047415,-500.0,0.00015106,2]
[338740398,1726905047425,-500.0,0.00015106,2]
[338740400,1726905047434,-500.0,0.00015106,2]
[338740402,1726905047444,-500.0,0.00015106,2]
[338740404,1726905047453,-855.86,0.00015106,2]
[338740406,1726905047463,-500.0,0.00015106,2]
[338740408,1726905047473,-295.02133353,0.00015106,2]
[338740410,1726905047483,-500.0,0.00015106,2]
[338740412,1726905047492,-500.0,0.00015106,2]
[338740414,1726905047502,-500.0,0.00015106,2]
[338740416,1726905047513,-873.0,0.00015106,2]
[338740419,1726905047523,-527.74,0.00015106,2]
[338740421,1726905047533,-557.841104,0.00015106,2]
[338740423,1726905047543,-500.0,0.00015106,2]
[338740425,1726905047554,-500.0,0.00015106,2]
[338740427,1726905047563,-500.0,0.00015106,2]
[338740428,1726905047573,-16706.89,0.00015106,2]
[338740429,1726905047583,-500.0,0.00015106,2]
[338740430,1726905047594,-2394.64,0.00015106,2]
[338740431,1726905047605,-993.44,0.00015107,2]
[338740432,1726905047615,-912.71,0.00015107,2]
[338740433,1726905047625,-151.0,0.00015107,2]
[338740434,1726905047635,-500.0,0.00015107,2]
[338740435,1726905047644,-272.631597,0.00015107,2]
[338740436,1726905047654,-272.631597,0.00015107,2]
[338740437,1726905047663,-517.93,0.00015107,2]
[338740438,1726905047674,-151.0,0.00015107,2]
[338740439,1726905047685,-300.830233,0.00015107,2]
[338740440,1726905047695,-151.0,0.00015107,2]
[338740441,1726905047706,-151.0,0.00015107,2]
[338740442,1726905047716,-500.0,0.00015107,2]
[338740443,1726905047727,-500.0,0.00015107,2]
[338740444,1726905047737,-500.0,0.00015107,2]
[338740445,1726905047747,-500.0,0.00015107,2]
[338740446,1726905047758,-500.0,0.00015107,2]
[338740447,1726905047767,-184.151997,0.00015107,2]
[338740448,1726905047779,-500.0,0.00015107,2]
[338740449,1726905047791,-500.0,0.00015107,2]
[338740450,1726905047800,-184.151997,0.00015107,2]
[338740451,1726905047810,-500.0,0.00015107,2]
[338740452,1726905047819,-500.0,0.00015107,2]
[338740453,1726905047829,-1923.46,0.00015107,2]
[338740454,1726905047839,-500.0,0.00015107,2]
[338740455,1726905047850,-500.0,0.00015107,2]
[338740456,1726905047859,-500.0,0.00015107,2]
[338740457,1726905047869,-500.0,0.00015107,2]
[338740458,1726905047879,-500.0,0.00015107,2]
[338740459,1726905047888,-727.21,0.00015107,2]
[338740460,1726905047899,-500.0,0.00015107,2]
[338740461,1726905047908,-431.816928,0.00015109,2]
[338740462,1726905047918,-431.816928,0.00015109,2]
[338740463,1726905047929,-500.0,0.00015109,2]
[338740464,1726905047946,-151.0,0.00015109,2]
[338740465,1726905047957,-500.0,0.00015109,2]
[338740466,1726905047967,-151.0,0.00015109,2]
[338740467,1726905047977,-151.0,0.00015109,2]
[338740468,1726905047988,-151.0,0.00015109,2]
[338740469,1726905048001,-151.0,0.00015109,2]
[338740470,1726905048013,-500.0,0.00015109,2]
[338740471,1726905048023,-151.0,0.00015109,2]
[338740472,1726905048032,-624.31,0.00015109,2]
[338740473,1726905048041,-151.0,0.00015109,2]
[338740474,1726905048052,-513.61643952,0.00015109,2]
[338740475,1726905048062,-151.0,0.00015109,2]
[338740476,1726905048072,-151.0,0.00015109,2]
[338740477,1726905048082,-705.602606,0.00015109,2]
[338740478,1726905048096,-705.602606,0.00015109,2]
[338740479,1726905048106,-151.0,0.00015109,2]
[338740480,1726905048116,-446.600494,0.00015109,2]
[338740481,1726905048127,-446.600494,0.00015109,2]
[338740482,1726905048137,-151.0,0.00015109,2]
[338740483,1726905048147,-151.0,0.00015109,2]
[338740484,1726905048156,-151.0,0.00015109,2]
[338740485,1726905048166,-500.0,0.00015109,2]
[338740486,1726905048176,-993.8,0.00015109,2]
[338740487,1726905048186,-280.99809438,0.00015109,2]
[338740488,1726905048196,-200.0,0.00015109,2]
[338740489,1726905048207,-500.0,0.00015109,2]
[338740490,1726905048218,-500.0,0.00015109,2]
[338740491,1726905048228,-1740.428184,0.00015109,2]
[338740492,1726905048239,-1740.428184,0.00015109,2]
[338740493,1726905048248,-500.0,0.00015109,2]
[338740494,1726905048259,-528.21,0.00015109,2]
[338740495,1726905048269,-561.56,0.00015109,2]
[338740496,1726905048278,-523.64,0.00015109,2]
[338740497,1726905048288,-615.622757,0.00015109,2]
[338740498,1726905048299,-931.712217,0.00015109,2]
[338740499,1726905048309,-615.622757,0.00015109,2]
[338740500,1726905048322,-515.13,0.00015109,2]
[338740501,1726905048332,-931.712217,0.00015109,2]
[338740502,1726905048342,-217.22022909,0.00015109,2]
[338740503,1726905048352,-589.325293,0.00015109,2]
[338740504,1726905048361,-151.0,0.00015109,2]
[338740505,1726905048371,-500.0,0.00015109,2]
[338740506,1726905048381,-151.0,0.00015109,2]
[338740507,1726905048390,-1028.335934,0.00015109,2]
[338740508,1726905048400,-500.0,0.00015109,2]
[338740509,1726905048410,-1028.335934,0.00015109,2]
[338740510,1726905048419,-727.78,0.00015109,2]
[338740511,1726905048429,-500.0,0.00015109,2]
[338740512,1726905048438,-300.378602,0.00015109,2]
[338740513,1726905048448,-151.0,0.00015109,2]
[338740514,1726905048459,-500.0,0.00015109,2]
[338740515,1726905048468,-151.0,0.00015109,2]
[338740516,1726905048480,-151.0,0.00015109,2]
[338740517,1726905048490,-151.0,0.00015109,2]
[338740518,1726905048501,-500.0,0.00015109,2]
[338740519,1726905048512,-500.0,0.00015109,2]
[338740520,1726905048522,-500.0,0.00015109,2]
[338740521,1726905048532,-500.0,0.00015109,2]
[338740522,1726905048542,-1144.079738,0.00015109,2]
[338740523,1726905048552,-1144.079738,0.00015109,2]
[338740524,1726905048561,-500.0,0.00015109,2]
[338740525,1726905048570,-500.0,0.00015109,2]
[338740526,1726905048580,-500.0,0.00015109,2]
[338740527,1726905048590,-500.0,0.00015109,2]
[338740528,1726905048600,-1527.8,0.00015109,2]
[338740529,1726905048610,-166.869492,0.00015109,2]
[338740530,1726905048620,-166.869492,0.00015109,2]
[338740531,1726905048630,-500.0,0.00015109,2]
[338740532,1726905048639,-1113.570194,0.00015109,2]
[338740533,1726905048651,-235.306736,0.00015109,2]
[338740534,1726905048661,-1113.570194,0.00015109,2]
[338740535,1726905048671,-235.306736,0.00015109,2]
[338740536,1726905048681,-500.0,0.00015109,2]
[338740537,1726905048690,-178.348073,0.00015109,2]
[338740538,1726905048700,-178.348073,0.00015109,2]
[338740539,1726905048710,-726.919242,0.00015109,2]
[338740540,1726905048719,-726.919242,0.00015109,2]
[338740541,1726905048729,-797.234245,0.00015109,2]
[338740542,1726905048739,-151.0,0.00015109,2]
[338740543,1726905048748,-797.234245,0.00015109,2]
[338740544,1726905048759,-541.023795,0.00015109,2]
[338740545,1726905048770,-208.465755,0.00015109,2]
[338740546,1726905048779,-208.465755,0.00015109,2]
[338740547,1726905048788,-541.023795,0.00015109,2]
[338740548,1726905048798,-1700.158132,0.00015109,2]
[338740549,1726905048808,-1700.158132,0.00015109,2]
[338740550,1726905048817,-175.060448,0.00015109,2]
[338740551,1726905048827,-163.476886,0.00015109,2]
[338740552,1726905048837,-366.71633,0.00015109,2]
[338740553,1726905048846,-503.680292,0.00015109,2]
[338740554,1726905048855,-175.060448,0.00015109,2]
[338740555,1726905048866,-366.71633,0.00015109,2]
[338740556,1726905048875,-503.680292,0.00015109,2]
[338740557,1726905048884,-163.476886,0.00015109,2]
[338740558,1726905048894,-5773.8220276,0.0001511,2]
[338740560,1726905048911,-261.603151,0.00015112,2]
[338740562,1726905048921,-151.0,0.00015112,2]
[338740564,1726905048931,-151.0,0.00015112,2]
[338740566,1726905048941,-151.0,0.00015112,2]
[338740568,1726905048951,-151.0,0.00015112,2]
[338740574,1726905048998,-151.0,0.00015112,2]
[338740576,1726905049007,-151.0,0.00015112,2]
[338740578,1726905049017,-151.0,0.00015112,2]
[338740580,1726905049026,-152.867749,0.00015112,2]
[338740582,1726905049036,-705.602606,0.00015112,2]
[338740584,1726905049045,-705.602606,0.00015112,2]
[338740586,1726905049055,-151.0,0.00015112,2]
[338740588,1726905049064,-500.0,0.00015119,2]
[338740590,1726905049074,-431.816928,0.0001512,2]
[338740592,1726905049083,-431.816928,0.0001512,2]
[338740594,1726905049095,-151.0,0.0001512,2]
[338740596,1726905049104,-151.0,0.0001512,2]
[338740598,1726905049114,-151.0,0.0001512,2]
[338740600,1726905049123,-151.0,0.0001512,2]
[338740602,1726905049132,-165.934238,0.0001512,2]
[338740604,1726905049141,-151.0,0.0001512,2]
[338740606,1726905049151,-151.0,0.0001512,2]
[338740608,1726905049161,-705.602606,0.0001512,2]
[338740610,1726905049170,-705.602606,0.0001512,2]
[338740612,1726905049180,-151.0,0.0001512,2]
[338740614,1726905049189,-272.631597,0.0001512,2]
[338740617,1726905049199,-272.631597,0.0001512,2]
[338740619,1726905049208,-157.307529,0.0001512,2]
[338740621,1726905049218,-151.0,0.0001512,2]
[338740623,1726905049228,-151.0,0.0001512,2]
[338740625,1726905049237,-969.29210444,0.0001512,2]
[338740643,1726905049399,-377.2191834,0.00014285,2]
[338742577,1726905227997,240.6351371,0.00013747,2]
[338742581,1726905361485,404.464994,0.00013699,2]
[338742584,1726905386162,179.941621,0.00011781,2]
[338742603,1726905921689,1102.17663,0.00013699,2]
[338742605,1726905944633,170.944539,0.00011781,2]
[338742607,1726906003222,202.232497,0.00013699,2]
[338742624,1726906232550,-498.25893914,0.00014041,2]
[338743073,1726906238635,-1.74106086,0.00014041,2]
[338743074,1726906238646,-338.93378884,0.00014279,2]
[338743075,1726906238655,-300.0,0.0001428,2]
[338743076,1726906238665,-500.0,0.00014281,2]
[338743077,1726906238675,-823.44,0.00014281,2]
[338743078,1726906238685,-500.0,0.00014281,2]
[338743079,1726906238695,-500.0,0.00014281,2]
[338743080,1726906238705,-500.0,0.00014281,2]
[338743081,1726906238715,-15314.64,0.00014281,2]
[338743082,1726906238724,-2195.08,0.00014282,2]
[338743083,1726906238734,-500.0,0.00014282,2]
[338743084,1726906238744,-800.25,0.00014282,2]
[338743085,1726906238754,-500.0,0.00014283,2]
[338743086,1726906238764,-500.0,0.00014283,2]
[338743087,1726906238775,-500.0,0.00014283,2]
[338743088,1726906238785,-603.26,0.00014283,2]
[338743089,1726906238796,-192.44832327,0.00014283,2]
[338743090,1726906238805,-500.0,0.00014283,2]
[338743091,1726906238816,-500.0,0.00014283,2]
[338743092,1726906238828,-607.69056196,0.00014283,2]
[338743093,1726906238838,-500.0,0.00014283,2]
[338743094,1726906238848,-500.0,0.00014283,2]
[338743095,1726906238857,-500.0,0.00014283,2]
[338743096,1726906238867,-500.0,0.00014283,2]
[338743097,1726906238877,-500.0,0.00014283,2]
[338743098,1726906238888,-500.0,0.00014283,2]
[338743099,1726906238898,-876.34,0.00014283,2]
[338743100,1726906238909,-931.49,0.00014283,2]
[338743101,1726906238919,-500.0,0.00014283,2]
[338743102,1726906238929,-500.0,0.00014283,2]
[338743103,1726906238943,-514.8613394,0.00014283,2]
[338743104,1726906238953,-500.0,0.00014283,2]
[338743105,1726906238964,-500.0,0.00014283,2]
[338743106,1726906238974,-500.0,0.00014283,2]
[338743107,1726906238983,-500.0,0.00014283,2]
[338743108,1726906238993,-500.0,0.00014283,2]
[338743109,1726906239004,-500.0,0.00014283,2]
[338743110,1726906239014,-505.26834954,0.00014283,2]
[338743111,1726906239024,-500.0,0.00014283,2]
[338743112,1726906239036,-500.0,0.00014283,2]
[338743113,1726906239046,-500.0,0.00014283,2]
[338743114,1726906239057,-500.0,0.00014283,2]
[338743115,1726906239067,-500.0,0.00014283,2]
[338743116,1726906239076,-500.0,0.00014283,2]
[338743117,1726906239086,-500.0,0.00014283,2]
[338743118,1726906239097,-500.0,0.00014283,2]
[338743119,1726906239109,-500.0,0.00014283,2]
[338743120,1726906239121,-500.0,0.00014283,2]
[338743121,1726906239131,-500.0,0.00014283,2]
[338743122,1726906239142,-500.0,0.00014283,2]
[338743123,1726906239153,-500.0,0.00014283,2]
[338743124,1726906239164,-500.0,0.00014283,2]
[338743125,1726906239174,-500.0,0.00014283,2]
[338743126,1726906239184,-500.0,0.00014283,2]
[338743127,1726906239194,-500.0,0.00014283,2]
[338743128,1726906239204,-500.0,0.00014283,2]
[338743129,1726906239213,-500.0,0.00014283,2]
[338743130,1726906239223,-500.0,0.00014283,2]
[338743131,1726906239232,-500.0,0.00014283,2]
[338743132,1726906239241,-500.0,0.00014283,2]
[338743133,1726906239250,-500.0,0.00014283,2]
[338743134,1726906239261,-500.0,0.00014283,2]
[338743135,1726906239272,-172.75274404,0.00014283,2]
[338743136,1726906239282,-500.0,0.00014283,2]
[338743137,1726906239292,-500.0,0.00014283,2]
[338743138,1726906239302,-500.0,0.00014283,2]
[338743139,1726906239312,-500.0,0.00014283,2]
[338743140,1726906239322,-500.0,0.00014283,2]
[338743141,1726906239331,-500.0,0.00014283,2]
[338743142,1726906239340,-500.0,0.00014283,2]
[338743143,1726906239349,-500.0,0.00014283,2]
[338743144,1726906239359,-500.0,0.00014283,2]
[338743145,1726906239369,-500.0,0.00014283,2]
[338743146,1726906239380,-500.0,0.00014283,2]
[338743147,1726906239393,-500.0,0.00014283,2]
[338743148,1726906239403,-375.74604447,0.00014283,2]
[338743149,1726906239414,-500.0,0.00014283,2]
[338743150,1726906239424,-500.0,0.00014283,2]
[338743151,1726906239434,-500.0,0.00014283,2]
[338743152,1726906239443,-1930.75,0.00014283,2]
[338743153,1726906239453,-357.94168986,0.00014283,2]
[338743154,1726906239463,-500.0,0.00014283,2]
[338743155,1726906239473,-500.0,0.00014283,2]
[338743156,1726906239483,-655.05,0.00014283,2]
[338743157,1726906239493,-500.0,0.00014283,2]
[338743158,1726906239502,-500.0,0.00014283,2]
[338743159,1726906239512,-503.80585493,0.00014283,2]
[338743160,1726906239522,-500.0,0.00014283,2]
[338743161,1726906239531,-500.0,0.00014283,2]
[338743162,1726906239541,-500.0,0.00014283,2]
[338743163,1726906239551,-500.0,0.00014283,2]
[338743164,1726906239560,-500.0,0.00014283,2]
[338743165,1726906239570,-500.0,0.00014283,2]
[338743166,1726906239579,-502.02661187,0.00014283,2]
[338743167,1726906239589,-500.0,0.00014283,2]
[338743168,1726906239599,-500.0,0.00014283,2]
[338743169,1726906239608,-500.0,0.00014283,2]
[338743170,1726906239618,-260.82529819,0.00014283,2]
[338743171,1726906239627,-500.0,0.00014283,2]
[338743172,1726906239637,-696.91,0.00014283,2]
[338743173,1726906239650,-500.0,0.00014283,2]
[338743174,1726906239660,-500.0,0.00014283,2]
[338743175,1726906239670,-587.76834162,0.00014283,2]
[338743176,1726906239680,-500.0,0.00014283,2]
[338743177,1726906239691,-981.84,0.00014283,2]
[338743178,1726906239700,-500.0,0.00014283,2]
[338743179,1726906239709,-500.0,0.00014283,2]
[338743180,1726906239719,-200.0,0.00014283,2]
[338743181,1726906239728,-500.0,0.00014283,2]
[338743182,1726906239738,-500.0,0.00014283,2]
[338743183,1726906239747,-500.0,0.00014283,2]
[338743184,1726906239757,-500.0,0.00014284,2]
[338743185,1726906239767,-500.0,0.00014284,2]
[338743186,1726906239777,-362.64083535,0.00014284,2]
[338743187,1726906239786,-500.0,0.00014284,2]
[338743188,1726906239795,-500.0,0.00014284,2]
[338743189,1726906239805,-532.21,0.00014284,2]
[338743190,1726906239814,-500.0,0.00014284,2]
[338743191,1726906239823,-500.0,0.00014284,2]
[338743192,1726906239834,-500.0,0.00014284,2]
[338743193,1726906239846,-430.72399219,0.00014284,2]
[338743194,1726906239856,-500.0,0.00014284,2]
[338743195,1726906239865,-837.46,0.00014284,2]
[338743196,1726906239876,-607.97,0.00014284,2]
[338743197,1726906239886,-500.0,0.00014284,2]
[338743198,1726906239895,-500.0,0.00014284,2]
[338743199,1726906239904,-500.0,0.00014284,2]
[338743200,1726906239915,-500.0,0.00014284,2]
[338743201,1726906239925,-500.0,0.00014284,2]
[338743202,1726906239935,-500.0,0.00014284,2]
[338743203,1726906239945,-500.0,0.00014284,2]
[338743204,1726906239955,-500.0,0.00014284,2]
[338743205,1726906239964,-519.03,0.00014284,2]
[338743206,1726906239974,-500.0,0.00014284,2]
[338743207,1726906239983,-500.0,0.00014284,2]
[338743208,1726906239993,-500.0,0.00014284,2]
[338743209,1726906240002,-500.0,0.00014284,2]
[338743210,1726906240012,-500.0,0.00014284,2]
[338743211,1726906240021,-500.0,0.00014284,2]
[338743212,1726906240031,-500.0,0.00014284,2]
[338743213,1726906240040,-500.0,0.00014284,2]
[338743214,1726906240050,-500.0,0.00014284,2]
[338743216,1726906240059,-500.0,0.00014284,2]
[338743218,1726906240069,-500.0,0.00014284,2]
[338743220,1726906240079,-500.0,0.00014284,2]
[338743222,1726906240089,-514.06724973,0.00014284,2]
[338743223,1726906240098,-285.95029188,0.00014284,2]
[338743224,1726906240108,-500.0,0.00014284,2]
[338743225,1726906240117,-500.0,0.00014284,2]
[338743226,1726906240127,-1469.93,0.00014284,2]
[338743227,1726906240137,-500.0,0.00014284,2]
[338743228,1726906240146,-500.0,0.00014284,2]
[338743229,1726906240156,-500.0,0.00014284,2]
[338743231,1726906240167,-500.0,0.00014284,2]
[338743233,1726906240177,-500.0,0.00014284,2]
[338743234,1726906240186,-500.0,0.00014285,2]
[338743235,1726906240196,-53864.7360061,0.00014369,2]
[338743236,1726906240206,-53864.7360061,0.00014374,2]
[338743237,1726906240216,-49312.5711044,0.00014379,2]
[338743238,1726906240226,-1102.17663,0.00014384,2]
[338743239,1726906240236,-338.93378883,0.00014392,2]
[338743240,1726906240245,-338.93378883,0.00014505,2]
[338743241,1726906240255,-53864.7360061,0.00014527,2]
[338743242,1726906240265,-53864.7360061,0.00014528,2]
[338743243,1726906240277,-179.55963272,0.00014536,2]
[338743244,1726906240286,-500.0,0.00014536,2]
[338743245,1726906240308,-500.0,0.00014536,2]
[338743246,1726906240318,-500.0,0.00014536,2]
[338743247,1726906240328,-500.0,0.00014536,2]
[338743248,1726906240339,-444.6142648,0.00014536,2]
[338743249,1726906240350,-571.47117515,0.00014536,2]
[338743250,1726906240361,-500.0,0.00014536,2]
[338743251,1726906240371,-500.0,0.00014536,2]
[338743252,1726906240381,-500.0,0.00014536,2]
[338743253,1726906240390,-500.0,0.00014536,2]
[338743254,1726906240400,-500.0,0.00014536,2]
[338743255,1726906240410,-500.0,0.00014536,2]
[338743256,1726906240419,-500.0,0.00014536,2]
[338743257,1726906240429,-500.0,0.00014536,2]
[338743258,1726906240439,-571.11228861,0.00014536,2]
[338743259,1726906240451,-500.0,0.00014536,2]
[338743260,1726906240462,-500.0,0.00014536,2]
[338743261,1726906240473,-500.0,0.00014536,2]
[338743262,1726906240485,-500.0,0.00014536,2]
[338743263,1726906240494,-500.0,0.00014536,2]
[338743264,1726906240503,-618.36678515,0.00014536,2]
[338743265,1726906240514,-500.0,0.00014536,2]
[338743266,1726906240525,-500.0,0.00014536,2]
[338743267,1726906240535,-500.0,0.00014536,2]
[338743268,1726906240546,-500.0,0.00014536,2]
[338743269,1726906240556,-500.0,0.00014536,2]
[338743270,1726906240567,-425.63159022,0.00014536,2]
[338743271,1726906240576,-500.0,0.00014536,2]
[338743272,1726906240588,-500.0,0.00014536,2]
[338743273,1726906240600,-368.3802166,0.00014536,2]
[338743274,1726906240610,-500.0,0.00014536,2]
[338743275,1726906240620,-500.0,0.00014536,2]
[338743276,1726906240630,-500.0,0.00014536,2]
[338743277,1726906240639,-500.0,0.00014536,2]
[338743278,1726906240650,-500.0,0.00014536,2]
[338743279,1726906240661,-500.0,0.00014536,2]
[338743280,1726906240672,-500.0,0.00014536,2]
[338743281,1726906240683,-157.60850622,0.00014536,2]
[338743282,1726906240693,-49312.5711044,0.00014537,2]
[338743283,1726906240703,-107729.472012,0.00014537,2]
[338743284,1726906240713,-12690.66672462,0.00014538,2]
[338743285,1726906241054,-36621.90437978,0.00014538,2]
[338743286,1726906241063,-49312.5711044,0.00014547,2]
[338743287,1726906241073,-500.0,0.00014555,2]
[338743288,1726906241082,-823.44,0.00014555,2]
[338743289,1726906241092,-500.0,0.00014555,2]
[338743290,1726906241101,-557.841104,0.00014555,2]
[338743291,1726906241111,-500.0,0.00014555,2]
[338743292,1726906241121,-15314.64,0.00014555,2]
[338743293,1726906241130,-2195.08,0.00014556,2]
[338743294,1726906241140,-500.0,0.00014556,2]
[338743295,1726906241149,-155.184983,0.00014556,2]
[338743296,1726906241159,-151.0,0.00014556,2]
[338743297,1726906241169,-151.0,0.00014556,2]
[338743298,1726906241179,-800.25,0.00014556,2]
[338743299,1726906241188,-209.758641,0.00014556,2]
[338743300,1726906241197,-209.758641,0.00014556,2]
[338743301,1726906241208,-500.0,0.00014557,2]
[338743302,1726906241218,-500.0,0.00014557,2]
[338743303,1726906241227,-603.26,0.00014557,2]
[338743304,1726906241236,-500.0,0.00014557,2]
[338743305,1726906241245,-500.0,0.00014557,2]
[338743306,1726906241255,-500.0,0.00014557,2]
[338743307,1726906241265,-500.0,0.00014557,2]
[338743308,1726906241277,-500.0,0.00014557,2]
[338743309,1726906241288,-500.0,0.00014557,2]
[338743310,1726906241303,-641.51947122,0.00014557,2]
[338743311,1726906241314,-876.34,0.00014557,2]
[338743312,1726906241324,-931.49,0.00014557,2]
[338743313,1726906241334,-500.0,0.00014557,2]
[338743314,1726906241343,-500.0,0.00014557,2]
[338743315,1726906241353,-500.0,0.00014557,2]
[338743316,1726906241362,-500.0,0.00014557,2]
[338743317,1726906241372,-500.0,0.00014557,2]
[338743318,1726906241382,-213.07478154,0.00014557,2]
[338743319,1726906241391,-500.0,0.00014557,2]
[338743320,1726906241402,-500.0,0.00014557,2]
[338743321,1726906241411,-500.0,0.00014557,2]
[338743322,1726906241427,-500.0,0.00014557,2]
[338743323,1726906241438,-500.0,0.00014557,2]
[338743324,1726906241448,-500.0,0.00014557,2]
[338743325,1726906241457,-500.0,0.00014557,2]
[338743326,1726906241466,-500.0,0.00014557,2]
[338743327,1726906241476,-500.0,0.00014557,2]
[338743328,1726906241485,-500.0,0.00014557,2]
[338743329,1726906241494,-500.0,0.00014557,2]
[338743330,1726906241504,-295.02133353,0.00014557,2]
[338743331,1726906241514,-500.0,0.00014557,2]
[338743332,1726906241524,-500.0,0.00014557,2]
[338743333,1726906241536,-500.0,0.00014557,2]
[338743334,1726906241547,-500.0,0.00014557,2]
[338743335,1726906241557,-500.0,0.00014557,2]
[338743336,1726906241568,-500.0,0.00014557,2]
[338743337,1726906241578,-500.0,0.00014557,2]
[338743338,1726906241587,-500.0,0.00014557,2]
[338743339,1726906241598,-500.0,0.00014557,2]
[338743340,1726906241608,-500.0,0.00014557,2]
[338743341,1726906241619,-500.0,0.00014557,2]
[338743342,1726906241628,-641.77781914,0.00014557,2]
[338743343,1726906241640,-500.0,0.00014557,2]
[338743344,1726906241656,-500.0,0.00014557,2]
[338743345,1726906241668,-500.0,0.00014557,2]
[338743346,1726906241678,-1930.75,0.00014557,2]
[338743347,1726906241688,-500.0,0.00014557,2]
[338743348,1726906241698,-500.0,0.00014557,2]
[338743349,1726906241709,-655.05,0.00014557,2]
[338743350,1726906241910,-500.0,0.00014557,2]